bitfinex-derivatives/quotes_BNBF0:USTF0_20250116
["timestamp","ask_amount","ask_price","bid_price","bid_amount"]
[1737048972337,0.27937252,715.89,715.33,0.46847756]
[1737048972537,0.27937252,715.89,714.69,1.03809314]
[1737048972538,0.27937252,715.89,715.34,0.46847756]
[1737048972742,0.27937252,715.89,715.35,0.46847756]
[1737048972942,0.27937252,715.89,715.36,0.46847756]
[1737048973137,0.27937252,715.89,715.37,0.46847756]
[1737048973338,0.27937252,715.89,715.38,0.46847756]
[1737048973540,0.27937252,715.89,715.39,0.46847756]
[1737048973841,0.27937252,715.89,715.4,0.46852237]
[1737048974043,0.27937252,715.89,714.68,1.03809314]
[1737048974242,0.27937252,715.89,714.57,0.2798886]
[1737048974243,0.27937252,715.89,714.69,0.46846526]
[1737048974435,0.27937252,715.89,714.7,0.46846526]
[1737048974636,0.27937252,715.89,714.71,0.72534067]
[1737048974834,0.27937252,715.89,714.72,0.46846526]
[1737048975040,0.27937252,715.89,714.73,0.46846526]
[1737048975235,0.27937252,715.89,714.74,0.46846526]
[1737048975436,0.27937252,715.89,714.57,0.2798886]
[1737048975437,0.27937252,715.89,714.75,0.46846526]
[1737048975744,0.27937252,715.89,714.76,0.46846526]
[1737048976043,0.27937252,715.89,714.77,0.46846526]
[1737048976244,0.27937252,715.89,714.78,0.46846526]
[1737048976445,0.27937252,715.89,714.79,0.46846526]
[1737048976740,1.04677512,716.38,714.8,0.46846526]
[1737048976937,0.27918533,716.37,714.81,0.46846526]
[1737048977141,0.27918533,716.37,714.82,0.46846526]
[1737048977340,0.27918533,716.37,714.83,0.46846526]
[1737048977539,0.27918533,716.37,714.84,0.46846526]
[1737048977742,0.27918533,716.37,714.85,0.46846526]
[1737048977940,0.27918533,716.37,714.86,0.46846526]
[1737048978139,0.27918533,716.37,714.87,0.46846526]
[1737048978340,0.27918533,716.37,714.88,0.46846526]
[1737048978542,0.27918533,716.37,714.89,0.46846526]
[1737048978841,0.27918533,716.37,714.9,0.46846526]
[1737048979044,0.27918533,716.37,714.91,0.46846526]
[1737048979240,0.27918533,716.37,714.92,0.46846526]
[1737048979437,0.27918533,716.37,714.93,0.46846526]
[1737048979745,0.27918533,716.37,714.94,0.46846526]
[1737048980037,0.27918533,716.37,714.95,0.46846526]
[1737048980242,0.27918533,716.37,714.96,0.46846526]
[1737048980441,0.27918533,716.37,714.97,0.46846526]
[1737048980642,0.27918533,716.37,714.98,0.46846526]
[1737048980834,0.27918533,716.37,714.99,0.46846526]
[1737048981038,0.27918533,716.37,715.0,0.46846526]
[1737048981336,0.27918533,716.37,715.01,0.46846526]
[1737048981541,0.27918533,716.37,715.02,0.46846526]
[1737048981844,0.27918533,716.37,715.03,0.46846526]
[1737048982042,0.27918533,716.37,715.04,0.46846526]
[1737048982236,0.27918533,716.37,714.69,1.03809314]
[1737048982237,0.27918533,716.37,715.05,0.46846526]
[1737048982437,0.27918533,716.37,715.06,0.46846526]
[1737048982744,0.27918533,716.37,715.07,0.46846526]
[1737048982944,0.27918533,716.37,715.08,0.46846526]
[1737048983137,0.27918533,716.37,715.09,0.46846526]
[1737048983336,0.27918533,716.37,715.1,0.46846526]
[1737048983540,0.27918533,716.37,715.11,0.46846526]
[1737048983742,0.27918533,716.37,715.12,0.46722448]
[1737048984045,0.27918533,716.37,714.67,1.03809314]
[1737048984245,0.27918533,716.37,714.69,0.2798416]
[1737048984544,0.27918533,716.37,714.7,0.7240221]
[1737048984741,0.27918533,716.37,714.71,0.7240221]
[1737048984938,0.27918533,716.37,714.73,0.27982594]
[1737048985241,0.27918533,716.37,714.74,0.7240221]
[1737048985438,0.27918533,716.37,714.75,0.7240221]
[1737048985639,0.27918533,716.37,714.76,1.0038363]
[1737048985943,0.27918533,716.37,714.77,1.00383238]
[1737048986144,0.27918533,716.37,714.78,1.00382847]
[1737048986339,0.27918533,716.37,714.79,1.00382455]
[1737048986542,0.27918533,716.37,714.8,1.0038188]
[1737048986738,0.27918533,716.37,714.81,1.00381489]
[1737048987039,0.27918533,716.37,714.82,1.00381097]
[1737048987244,0.27918533,716.37,714.83,1.00380674]
[1737048987446,0.27918533,716.37,714.84,1.00380282]
[1737048987642,0.27918533,716.37,714.85,1.00379891]
[1737048987946,0.27918533,716.37,714.86,1.003795]
[1737048988146,0.27918533,716.37,714.87,1.00379108]
[1737048988440,0.27918533,716.37,714.88,1.00378717]
[1737048988648,0.27918533,716.37,714.89,1.00378326]
[1737048988845,0.27918533,716.37,714.9,1.00377934]
[1737048989041,0.27918533,716.37,714.71,1.03809314]
[1737048989042,0.27918533,716.37,714.91,1.00377543]
[1737048989242,0.27918533,716.37,714.92,1.00377152]
[1737048989447,0.27918533,716.37,714.93,1.00376558]
[1737048989650,0.27918533,716.37,714.94,1.00376167]
[1737048989852,0.27918533,716.37,714.95,1.00375776]
[1737048990143,0.27918533,716.37,714.96,1.00375384]
[1737048990347,0.27918533,716.37,714.97,0.72401792]
[1737048990548,0.27918533,716.37,714.98,0.72401792]
[1737048990748,0.27918533,716.37,714.99,0.72401792]
[1737048990944,0.27918533,716.37,715.0,0.72401792]
[1737048991147,0.27918533,716.37,715.01,0.72401792]
[1737048991346,0.27918533,716.37,715.02,0.72401792]
[1737048991546,0.27918533,716.37,715.03,0.72401792]
[1737048991748,0.27918533,716.37,715.04,0.72401792]
[1737048992048,0.27918533,716.37,715.05,0.46721742]
[1737048992247,0.27918533,716.37,715.06,0.72400303]
[1737048992447,0.27918533,716.37,715.07,0.46721742]
[1737048992646,0.27918533,716.37,715.08,0.46721742]
[1737048992848,0.27918533,716.37,715.09,0.46721742]
[1737048993047,0.27918533,716.37,715.1,0.46721742]
[1737048993248,0.27918533,716.37,715.11,0.46671673]
[1737048993444,0.27918533,716.37,715.12,0.46671673]
[1737048993645,0.27918533,716.37,715.13,0.46671673]
[1737048993843,0.27918533,716.37,715.14,0.46671673]
[1737048994040,0.27918533,716.37,715.15,0.46671673]
[1737048994242,0.27918533,716.37,715.16,0.46671673]
[1737048994447,0.27918533,716.37,715.17,0.46671673]
[1737048994642,0.27918533,716.37,715.18,0.46671673]
[1737048994849,0.27918533,716.37,715.19,0.46671673]
[1737048995044,0.27918533,716.37,715.2,0.46664686]
[1737048995348,0.27918533,716.37,715.21,0.46664686]
[1737048995543,0.27918533,716.37,715.22,0.46664686]
[1737048995748,0.27918533,716.37,715.23,0.46664686]
[1737048995945,0.27918533,716.37,715.24,0.46664686]
[1737048996245,0.27918533,716.37,715.25,0.46664686]
[1737048996451,0.27918533,716.37,715.26,0.46664686]
[1737048996748,0.27918533,716.37,715.27,0.46664686]
[1737048996944,0.27918533,716.37,715.28,0.46664686]
[1737048997149,0.27918533,716.37,715.29,0.46664686]
[1737048997344,0.27918533,716.37,715.3,0.46664686]
[1737048997549,0.27918533,716.37,715.31,0.46664686]
[1737048997748,0.27918533,716.37,714.96,0.27973592]
[1737048997749,0.27918533,716.37,715.32,0.46664686]
[1737048997950,0.27918533,716.37,715.33,0.46664686]
[1737048998253,0.27918533,716.37,715.34,0.46664686]
[1737048998450,0.27918533,716.37,715.35,0.46664686]
[1737048998749,0.27918533,716.37,715.36,0.46664686]
[1737048998951,0.27918533,716.37,715.37,0.46664686]
[1737048999151,0.27918533,716.37,715.38,0.46664686]
[1737048999349,0.27918533,716.37,715.39,0.46664686]
[1737048999650,0.27918533,716.37,715.4,0.46664686]
[1737048999851,0.27918533,716.37,715.41,0.46664686]
[1737049000152,0.27918533,716.37,715.42,0.46664686]
[1737049000449,0.27918533,716.37,715.43,0.46664686]
[1737049000650,0.27918533,716.37,715.44,0.46664686]
[1737049000849,0.27918533,716.37,714.96,0.27973592]
[1737049000850,0.27918533,716.37,715.45,0.46664686]
[1737049001050,0.27918533,716.37,715.46,0.46664686]
[1737049001251,0.27918533,716.37,715.47,0.46664686]
[1737049001447,0.27918533,716.37,715.48,0.46664686]
[1737049001644,0.27918533,716.37,715.49,0.46664686]
[1737049001952,0.27918533,716.37,715.5,0.46664686]
[1737049002151,0.27918533,716.37,715.51,0.46664686]
[1737049002353,0.27918533,716.37,715.52,0.46664686]
[1737049002553,0.27918533,716.37,715.53,0.46664686]
[1737049002756,0.27918533,716.37,715.54,0.46664686]
[1737049002954,0.27918533,716.37,715.55,0.46664686]
[1737049003156,0.27918533,716.37,714.96,1.31227936]
[1737049003355,0.27918533,716.37,714.97,0.72382729]
[1737049003655,0.27918533,716.37,714.98,0.72382729]
[1737049003855,0.27918533,716.37,714.99,0.72384683]
[1737049004156,0.27918533,716.37,715.0,0.46702649]
[1737049004353,0.27918533,716.37,715.01,0.46702649]
[1737049004548,0.27918533,716.37,715.02,0.46702649]
[1737049004748,0.27918533,716.37,715.03,0.46702649]
[1737049004953,0.27918533,716.37,714.96,1.31227936]
[1737049004954,1.04289801,716.35,715.04,0.46702649]
[1737049005153,1.04289801,716.35,715.05,0.46702649]
[1737049005352,1.04289801,716.35,715.06,0.46702649]
[1737049005550,1.04289801,716.35,715.07,0.46702649]
[1737049005751,1.04289801,716.35,715.08,0.46702649]
[1737049005949,1.04289801,716.35,715.09,0.46702649]
[1737049006153,1.04289801,716.35,715.1,0.46702649]
[1737049006353,1.04289801,716.35,714.96,0.27973592]
[1737049006354,1.32208334,716.37,715.11,0.46702649]
[1737049006554,1.32208334,716.37,715.12,0.46702649]
[1737049006756,1.32208334,716.37,715.13,0.46702649]
[1737049007054,1.32208334,716.37,715.14,0.46702649]
[1737049007349,1.32208334,716.37,715.15,0.46702649]
[1737049007554,1.04289801,716.35,715.16,0.46702649]
[1737049007851,1.04289801,716.35,715.17,0.46702649]
[1737049008155,1.04289801,716.35,715.18,0.46702649]
[1737049008355,1.04289801,716.35,715.19,0.46702649]
[1737049008554,1.04289801,716.35,715.2,0.46702649]
[1737049008755,1.04289801,716.33,715.21,0.46702649]
[1737049008954,1.04289801,716.33,715.22,0.46702649]
[1737049009150,1.04289801,716.33,715.23,0.46702649]
[1737049009457,1.04289801,716.33,715.24,0.46702649]
[1737049009647,1.04289801,716.33,715.25,0.46702649]
[1737049009849,1.04289801,716.33,715.26,0.46702649]
[1737049010053,1.04289801,716.3,715.27,0.46702649]
[1737049010354,1.04289801,716.3,715.28,0.46702649]
[1737049010554,1.04289801,716.3,714.96,0.27973592]
[1737049010555,1.04289801,716.3,715.29,0.46702649]
[1737049010748,1.04289801,716.3,714.96,0.27973592]
[1737049010749,1.04289801,716.3,715.3,0.46702649]
[1737049010954,1.04289801,716.24,715.31,0.46702649]
[1737049011150,1.04289801,716.24,715.32,0.46702649]
[1737049011348,1.04289801,716.24,715.33,0.46702649]
[1737049011555,1.04289801,716.24,715.34,0.46702649]
[1737049011751,1.04289801,716.24,715.35,0.46702649]
[1737049011957,1.04289801,716.21,715.36,0.46702649]
[1737049012255,1.04289801,716.21,715.37,0.46702649]
[1737049012556,1.04289801,716.21,715.38,0.46702649]
[1737049012855,1.04289801,716.21,715.39,0.46702649]
[1737049013057,1.04289801,716.21,715.4,0.46702649]
[1737049013257,1.04289801,716.21,715.02,1.03254344]
[1737049013258,1.04289801,716.2,715.41,0.46702649]
[1737049013555,1.04289801,716.2,715.05,1.03254344]
[1737049013556,1.04289801,716.2,715.42,0.46702649]
[1737049013758,1.04289801,716.2,715.43,0.46702649]
[1737049013956,1.04289801,716.2,715.44,0.46702649]
[1737049014152,1.04289801,716.19,715.45,0.46702649]
[1737049014360,1.04289801,716.19,715.46,0.46702649]
[1737049014654,1.04289801,716.19,715.47,0.46702649]
[1737049014853,1.04289801,716.19,715.48,0.46702649]
[1737049015059,1.04289801,716.19,715.49,0.46702649]
[1737049015260,1.04289801,716.19,715.5,0.46702649]
[1737049015461,1.04289801,716.23,715.51,0.46702649]
[1737049015659,1.04289801,716.23,715.52,0.46702649]
[1737049015857,1.04289801,716.23,715.53,0.46702649]
[1737049016059,1.04289801,716.23,715.54,0.46702649]
[1737049016260,1.04289801,716.23,715.55,0.46702649]
[1737049016461,1.04289801,716.23,715.56,0.46702649]
[1737049016664,1.04289801,716.22,715.57,0.46702649]
[1737049016957,1.04289801,716.22,715.58,0.46702649]
[1737049017162,1.04289801,716.22,715.59,0.46702649]
[1737049017361,1.04289801,716.22,715.6,0.46702649]
[1737049017661,1.04289801,716.22,715.61,0.46702649]
[1737049017863,1.04289801,716.24,715.62,0.46702649]
[1737049018064,1.04289801,716.24,715.08,1.03254344]
[1737049018363,1.04289801,716.24,715.09,0.46857576]
[1737049018561,1.04289801,716.24,715.1,0.46857576]
[1737049018762,1.04289801,716.24,715.11,0.46857576]
[1737049018958,1.04289801,716.23,715.12,0.46857576]
[1737049019157,1.04289801,716.23,715.13,0.46857576]
[1737049019357,1.04289801,716.23,715.08,1.03254344]
[1737049019561,1.04289801,716.23,715.09,0.4685863]
[1737049019756,1.04289801,716.23,715.1,0.4685863]
[1737049019960,1.04289801,716.23,715.11,0.4685863]
[1737049020156,1.04289801,716.23,715.12,0.4685863]
[1737049020361,1.04289801,716.23,715.13,0.4685863]
[1737049020557,1.04289801,716.23,715.14,0.4685863]
[1737049020757,1.04289801,716.23,715.15,0.4685863]
[1737049020963,1.04289801,716.23,715.16,0.4685863]
[1737049021159,1.04289801,716.23,715.17,0.4685863]
[1737049021364,1.04289801,716.23,715.18,0.4685863]
[1737049021560,1.04289801,716.23,715.19,0.4685863]
[1737049021764,1.04289801,716.23,715.2,0.4685863]
[1737049021966,1.04289801,716.31,715.21,0.4685863]
[1737049022164,1.04289801,716.31,715.22,0.4685863]
[1737049022365,1.04289801,716.31,715.23,0.4685863]
[1737049022562,1.04289801,716.31,715.24,0.4685863]
[1737049022764,1.04289801,716.31,715.25,0.4685863]
[1737049022965,1.04289801,716.36,715.26,0.4685863]
[1737049023168,1.04289801,716.36,715.27,0.4685863]
[1737049023367,1.04289801,716.36,715.28,0.4685863]
[1737049023562,1.04289801,716.36,715.29,0.4685863]
[1737049023768,1.04289801,716.36,715.3,0.4685863]
[1737049023967,1.04289801,716.36,715.11,1.03254344]
[1737049023968,1.04289801,716.36,715.31,0.4685863]
[1737049024170,0.27918533,716.37,715.32,0.4685863]
[1737049024470,0.27918533,716.37,715.33,0.4685863]
[1737049024664,0.27918533,716.37,715.34,0.4685863]
[1737049024862,0.27918533,716.37,715.35,0.4685863]
[1737049025064,0.27918533,716.37,715.36,0.4685863]
[1737049025370,0.27918533,716.37,715.37,0.4685863]
[1737049025669,0.27918533,716.37,715.38,0.4685863]
[1737049025869,0.27918533,716.37,715.39,0.4685863]
[1737049026068,0.27918533,716.37,715.4,0.4685863]
[1737049026266,1.32208334,716.37,715.41,0.4685863]
[1737049026570,1.32208334,716.37,715.42,0.4685863]
[1737049026770,1.32208334,716.37,715.43,0.4685863]
[1737049026966,1.32208334,716.37,715.44,0.4685863]
[1737049027171,1.32208334,716.37,715.45,0.4685863]
[1737049027379,1.32208334,716.37,715.1,1.03254344]
[1737049027380,1.04289801,716.35,715.46,0.4685863]
[1737049027567,1.04289801,716.35,715.47,0.4685863]
[1737049027769,1.04289801,716.35,715.48,0.4685863]
[1737049027970,1.04289801,716.35,715.49,0.4685863]
[1737049028167,1.32208334,716.37,715.5,0.4685863]
[1737049028365,1.32208334,716.37,715.51,0.4685863]
[1737049028571,1.32208334,716.37,715.52,0.4685863]
[1737049028772,1.32208334,716.37,715.53,0.4685863]
[1737049028971,1.32208334,716.37,715.54,0.4685863]
[1737049029170,1.32208334,716.37,715.55,0.4685863]
[1737049029366,1.32208334,716.37,715.56,0.4685863]
[1737049029574,1.04289801,716.36,715.57,0.4685863]
[1737049029772,1.04289801,716.36,715.58,0.4685863]
[1737049029974,1.04289801,716.36,715.59,0.4685863]
[1737049030174,1.04289801,716.36,715.6,0.4685863]
[1737049030375,1.04289801,716.36,715.61,0.4685863]
[1737049030579,1.04289801,716.36,714.96,0.27973592]
[1737049030580,1.04289801,716.36,715.62,0.4685863]
[1737049030875,1.04289801,716.36,715.63,0.4685863]
[1737049031079,1.04289801,716.36,715.64,0.4685863]
[1737049031278,1.04289801,716.36,715.12,1.03254344]
[1737049031279,1.04289801,716.36,715.65,0.4685863]
[1737049031576,1.04289801,716.36,714.96,0.27973592]
[1737049031577,1.04289801,716.36,715.66,0.4685863]
[1737049031872,1.04289801,716.36,715.11,1.03254344]
[1737049032074,1.04289801,716.36,715.12,0.72605588]
[1737049032376,0.27918533,716.37,715.13,0.72605588]
[1737049032572,0.27918533,716.37,715.14,0.46928297]
[1737049032772,0.27918533,716.37,715.15,0.72602337]
[1737049032973,0.27918533,716.37,715.16,0.46928297]
[1737049033171,0.27918533,716.37,715.17,0.46928297]
[1737049033374,0.27918533,716.37,715.18,0.46928297]
[1737049033678,0.27918533,716.37,715.19,0.46928297]
[1737049033877,0.27918533,716.37,715.2,0.46928297]
[1737049034076,0.27918533,716.37,715.21,0.46928297]
[1737049034372,0.27918533,716.37,715.22,0.46928297]
[1737049034676,0.27918533,716.37,715.23,0.46928297]
[1737049034877,0.27918533,716.37,715.24,0.46928297]
[1737049035078,0.27918533,716.37,715.25,0.46928297]
[1737049035280,0.27918533,716.37,715.26,0.46928297]
[1737049035474,0.27918533,716.37,715.27,0.46928297]
[1737049035678,0.27918533,716.37,715.28,0.46928297]
[1737049035979,0.27918533,716.37,714.96,0.27973592]
[1737049035980,0.27918533,716.37,715.29,0.46928297]
[1737049036179,0.27918533,716.37,715.06,1.03254344]
[1737049036180,0.27918533,716.37,715.3,0.46928297]
[1737049036379,0.27918533,716.37,715.31,0.46928297]
[1737049036580,0.27918533,716.37,715.32,0.72601345]
[1737049036779,0.27918533,716.37,715.33,0.72601345]
[1737049036982,0.27918533,716.37,715.34,0.46928297]
[1737049037181,0.27918533,716.37,715.35,0.46928297]
[1737049037381,0.27918533,716.37,715.36,0.46928297]
[1737049037575,0.27918533,716.37,715.37,0.46928297]
[1737049037781,0.27918533,716.37,715.38,0.72600976]
[1737049037976,0.27918533,716.37,715.39,0.72600976]
[1737049038177,0.27918533,716.37,715.4,0.46928297]
[1737049038379,0.27918533,716.37,715.41,0.46928297]
[1737049038582,0.27918533,716.37,715.21,1.03254344]
[1737049038583,0.27918533,716.37,715.42,0.46928297]
[1737049038784,0.27918533,716.37,715.43,0.46928297]
[1737049038984,0.27918533,716.37,715.44,0.46928297]
[1737049039284,0.27918533,716.37,715.21,1.03254344]
[1737049039285,0.27918533,716.37,715.45,0.46928297]
[1737049039489,0.27918533,716.37,715.46,0.46910008]
[1737049039685,0.27918533,716.37,715.47,0.46910008]
[1737049039884,0.27918533,716.37,715.48,0.46910008]
[1737049040084,0.27918533,716.37,715.49,0.46910008]
[1737049040385,0.27918533,716.37,715.5,0.46910008]
[1737049040586,0.27918533,716.37,715.51,0.46910008]
[1737049040780,0.27918533,716.37,715.52,0.46910008]
[1737049040983,0.27918533,716.37,715.53,0.46910008]
[1737049041183,0.27918533,716.37,715.54,0.46910008]
[1737049041381,0.27918533,716.37,715.55,0.46910008]
[1737049041586,0.27918533,716.37,715.56,0.46910008]
[1737049041782,0.27918533,716.37,715.57,0.46910008]
[1737049041983,0.27918533,716.37,715.58,0.46910008]
[1737049042186,0.27918533,716.37,715.59,0.46910008]
[1737049042382,0.27918533,716.37,715.6,0.46910008]
[1737049042583,0.27918533,716.37,715.61,0.46910008]
[1737049042782,0.27918533,716.37,715.62,0.46910008]
[1737049042983,0.27918533,716.37,715.63,0.46910008]
[1737049043185,0.27918533,716.37,715.64,0.46910008]
[1737049043386,0.27918533,716.37,715.65,0.46910008]
[1737049043586,0.27918533,716.37,715.66,0.46910008]
[1737049043786,0.27918533,716.37,715.67,0.46910008]
[1737049043988,0.27918533,716.37,715.68,0.46910008]
[1737049044187,0.27918533,716.37,714.96,0.27973592]
[1737049044381,0.27918533,716.37,714.97,0.72571397]
[1737049044587,0.27918533,716.37,714.98,0.46898342]
[1737049044786,0.27918533,716.37,714.99,0.46898342]
[1737049044988,0.27918533,716.37,715.0,0.46898342]
[1737049045189,0.27918533,716.37,715.01,0.46893559]
[1737049045388,0.27918533,716.37,715.02,0.46893559]
[1737049045591,0.27918533,716.37,715.03,0.46893559]
[1737049045790,0.27918533,716.37,715.04,0.46893559]
[1737049045989,0.27918533,716.37,715.05,0.46893559]
[1737049046192,0.27918533,716.37,715.06,0.46893559]
[1737049046392,0.27918533,716.37,715.07,0.46893559]
[1737049046593,0.27918533,716.37,715.08,0.46893559]
[1737049046786,0.27918533,716.37,715.09,0.46893559]
[1737049046991,0.27918533,716.37,715.1,0.46893559]
[1737049047193,0.27918533,716.37,715.11,0.46893559]
[1737049047393,0.27918533,716.37,715.12,0.46893559]
[1737049047692,0.27918533,716.37,715.13,0.46893559]
[1737049047992,0.27918533,716.37,715.14,0.46893559]
[1737049048186,0.27918533,716.37,715.15,0.46893559]
[1737049048388,0.27918533,716.37,715.16,0.46893559]
[1737049048585,0.27918533,716.37,715.17,0.74858937]
[1737049048786,0.27918533,716.37,715.18,0.74858546]
[1737049048985,0.27918533,716.37,715.19,0.46893559]
[1737049049190,0.27918533,716.37,715.2,0.46893559]
[1737049049491,0.27918533,716.37,715.21,0.46893559]
[1737049049791,0.27918533,716.37,715.22,0.46893559]
[1737049049989,0.27918533,716.37,715.23,0.46893559]
[1737049050191,0.27918533,716.37,715.24,0.46893559]
[1737049050393,0.27918533,716.37,715.25,0.46893559]
[1737049050693,0.27918533,716.37,715.26,0.46893559]
[1737049050892,0.27918533,716.37,715.27,0.46893559]
[1737049051092,0.27918533,716.37,715.28,0.46893559]
[1737049051290,0.27918533,716.37,715.29,0.46893559]
[1737049051491,0.27918533,716.37,715.3,0.46893559]
[1737049051794,0.27918533,716.37,715.31,0.46893559]
[1737049051992,0.27918533,716.37,715.32,0.46893559]
[1737049052193,0.27918533,716.37,715.33,0.46893559]
[1737049052395,0.27918533,716.37,715.34,0.46893559]
[1737049052597,0.27918533,716.37,715.35,0.46893559]
[1737049052797,0.27918533,716.37,715.36,0.46893559]
[1737049052996,0.27918533,716.37,715.37,0.46893559]
[1737049053194,0.27918533,716.37,715.38,0.46893559]
[1737049053396,0.27918533,716.37,715.39,0.46893559]
[1737049053700,0.27918533,716.37,715.4,0.46893559]
[1737049053997,0.27918533,716.37,715.41,0.46893559]
[1737049054198,0.27918533,716.37,715.42,0.46893559]
[1737049054400,0.27918533,716.37,715.43,0.46893559]
[1737049054693,0.27918533,716.37,715.44,0.46893559]
[1737049054896,0.27918533,716.37,715.18,0.27964987]
[1737049054897,0.27918533,716.37,715.45,0.46893559]
[1737049055093,0.27918533,716.37,715.46,0.46893559]
[1737049055298,0.27918533,716.37,715.47,0.46893559]
[1737049055498,0.27918533,716.37,715.48,0.46893559]
[1737049055798,0.27918533,716.37,715.49,0.46893559]
[1737049055998,0.27918533,716.37,715.18,0.27964987]
[1737049055999,0.27918533,716.37,715.5,0.46893559]
[1737049056194,0.27918533,716.37,715.51,0.46893559]
[1737049056392,0.27918533,716.37,715.52,0.46893559]
[1737049056593,0.27918533,716.37,715.53,0.46893559]
[1737049056799,0.27918533,716.37,715.54,0.46893559]
[1737049057096,0.27918533,716.37,715.18,0.27964987]
[1737049057097,0.27918533,716.37,715.55,0.46893559]
[1737049057393,0.27918533,716.37,715.56,0.46893559]
[1737049057603,0.27918533,716.37,715.57,0.46893559]
[1737049057792,0.27918533,716.37,715.58,0.46893559]
[1737049057998,0.27918533,716.37,715.59,0.46893559]
[1737049058200,0.27918533,716.37,715.6,0.46893559]
[1737049058498,0.27918533,716.37,715.61,0.46893559]
[1737049058700,0.27918533,716.37,715.62,0.46893559]
[1737049058999,0.27918533,716.37,715.63,0.46893559]
[1737049059300,0.27918533,716.37,715.64,0.46893559]
[1737049059494,0.27918533,716.37,715.65,0.46893559]
[1737049059697,0.27918533,716.37,715.66,0.46893559]
[1737049059894,0.27918533,716.37,715.67,0.46893559]
[1737049060098,0.27918533,716.37,715.68,0.46893559]
[1737049060299,0.27918533,716.37,715.69,0.46893559]
[1737049060500,0.27918533,716.37,715.7,0.46893559]
[1737049060801,0.27918533,716.37,715.71,0.46893559]
[1737049060998,0.27918533,716.37,715.72,0.46893559]
[1737049061193,0.27918533,716.37,715.73,0.46893559]
[1737049061396,0.27918533,716.37,715.74,0.46893559]
[1737049061599,0.27918533,716.37,715.75,0.46893559]
[1737049061799,0.27918533,716.37,715.76,0.46893559]
[1737049061995,0.27918533,716.37,715.77,0.46893559]
[1737049062196,0.27918533,716.37,715.78,0.46893559]
[1737049062397,0.27918533,716.37,715.79,0.46893559]
[1737049062603,0.27918533,716.37,715.8,0.46893559]
[1737049062899,0.27918533,716.37,715.81,0.46893559]
[1737049063099,0.27918533,716.37,715.82,0.46893559]
[1737049063301,1.04289801,716.36,715.83,0.46893559]
[1737049063501,1.04289801,716.36,715.84,0.46893559]
[1737049063800,1.04289801,716.36,715.85,0.46893559]
[1737049064001,1.04289801,716.36,715.86,0.46834405]
[1737049064200,1.04289801,716.35,715.87,0.46834405]
[1737049064398,1.04289801,716.35,715.38,1.03254344]
[1737049064595,1.04289801,716.35,715.39,0.72513563]
[1737049064799,1.04289801,716.35,715.4,0.46841184]
[1737049065000,1.04289801,716.35,715.41,0.46841184]
[1737049065202,1.04289801,716.35,715.42,0.46841184]
[1737049065401,1.04289801,716.35,715.43,0.46841184]
[1737049065600,1.04289801,716.35,715.39,1.03254344]
[1737049065601,1.04289801,716.35,715.44,0.46841184]
[1737049065799,1.04289801,716.35,715.45,0.46841184]
[1737049066001,1.04289801,716.35,715.46,0.46841184]
[1737049066201,1.04289801,716.35,715.47,0.46841184]
[1737049066401,1.04289801,716.34,715.48,0.46841184]
[1737049066601,1.04289801,716.34,715.49,0.46841184]
[1737049066795,1.04289801,716.34,715.5,0.46841184]
[1737049067000,1.04289801,716.34,715.51,0.46841184]
[1737049067196,1.04289801,716.34,715.4,1.03254344]
[1737049067197,1.04289801,716.34,715.52,0.46841184]
[1737049067401,1.04289801,716.34,715.53,0.46841184]
[1737049067601,1.04289801,716.34,715.54,0.46841184]
[1737049067903,1.04289801,716.31,715.55,0.46841184]
[1737049068103,1.04289801,716.31,715.56,0.46841184]
[1737049068404,1.04289801,716.31,715.57,0.46841184]
[1737049068702,0.27918533,716.37,715.18,0.27964987]
[1737049068703,1.04289801,716.3,715.58,0.46841184]
[1737049068898,1.04289801,716.3,715.59,0.46841184]
[1737049069101,1.04289801,716.3,715.6,0.46841184]
[1737049069303,1.04289801,716.3,715.61,0.46841184]
[1737049069503,1.04289801,716.3,715.62,0.46841184]
[1737049069803,1.04289801,716.3,715.63,0.46841184]
[1737049070104,1.04289801,716.29,715.64,0.46841184]
[1737049070304,1.04289801,716.29,715.65,0.46841184]
[1737049070501,1.04289801,716.29,715.66,0.46841184]
[1737049070699,0.27918533,716.37,715.18,0.27964987]
[1737049070700,0.27918533,716.37,715.67,0.46841184]
[1737049070905,0.27918533,716.37,715.68,0.46841184]
[1737049071205,0.27918533,716.37,715.69,0.46841184]
[1737049071402,0.27918533,716.37,715.7,0.46841184]
[1737049071603,0.27918533,716.37,715.71,0.46841184]
[1737049071802,0.27918533,716.37,715.72,0.46841184]
[1737049072003,0.27918533,716.37,715.73,0.46841184]
[1737049072205,0.27918533,716.37,715.74,0.46841184]
[1737049072399,1.04289801,716.51,715.75,0.46841184]
[1737049072702,1.04289801,716.54,715.76,0.46841184]
[1737049073003,1.04289801,716.54,715.77,0.46841184]
[1737049073204,1.04289801,716.54,715.78,0.46841184]
[1737049073403,1.04289801,716.54,715.79,0.46845958]
[1737049073602,1.04289801,716.54,715.8,0.46845958]
[1737049073802,1.04289801,716.54,715.81,0.46845958]
[1737049074003,1.04289801,716.54,715.82,0.46845958]
[1737049074202,1.04289801,716.54,715.83,0.46845958]
[1737049074404,1.04289801,716.55,715.84,0.46845958]
[1737049074703,1.04289801,716.55,715.85,0.46845958]
[1737049074904,1.04289801,716.55,715.86,0.46845958]